Cogmind - Beta 16 @@@ ROGUE MODE // 2025.11.25 @ 20:44:44 Player: SilverswordXV Result: Destroyed by S-27 Virus with Autogun Performance ------------- Evolutions (1) 500 Regions Visited (6) 1200 Robots Destroyed (20) 100 Value Destroyed (483) 483 Prototype IDs (1) 20 Alien Tech Used (0) 0 Bonus (700) 700 TOTAL SCORE: 3003 Bonus ------- Follower Combat Kills 100 Met Imprinter 300 Was Imprinted 300 Cogmind --------- Core Integrity 0/400 Matter 300/300 Energy 100/100 System Corruption 0% Temperature Cool (0) Movement Core (50) Location -6/Proximity Caves Parts ------- > --- POWER (1) -------- (None) > --- PROPULSION (2) --- (None) > --- UTILITY (4) ------ (None) > --- WEAPON (2) ------- CR-A16's Pointy Stick > --- INVENTORY (5) ---- Compact Matter Pod (150) Small Laser Assault Rifle Light Assault Rifle Bore Cannon Peak State ------------ > --- POWER ------------ Light Nuclear Core > --- PROPULSION ------- Wheel Wheel > --- UTILITY ---------- Small Storage Unit Hardened Light Armor Plating Improved Light Armor Plating Hacking Drone Bay > --- WEAPON ----------- Assault Rifle CR-A16's Pointy Stick > --- INVENTORY -------- Ion Engine Wheel Compact Matter Pod Hardened Light Armor Plating Small Laser Light Assault Rifle Bore Cannon [Rating: 26] Favorites ----------- Power Ion Engine Engine Ion Engine Power Core Light Nuclear Core Propulsion Wheel Wheel Wheel Utility Small Storage Unit Device Hacking Drone Bay Storage Small Storage Unit Processor Targeting Computer Protection Hardened Light Armor Plating Weapon Light Assault Rifle Energy Gun Small Laser Ballistic Gun Light Assault Rifle Piercing Weapon CR-A16's Pointy Stick Build | -11 -10 -10 -9 -9 -7 -6 ------- Run | Yrd Mat Min Mat Min Zio Pro Slots Evolved 2 | . . . 2 . . . Power . | . . . . . . . Propulsion . | . . . . . . . Utility 2 | . . . 2 . . . Weapon . | . . . . . . . Parts Attached 26 | 6 3 4 4 . 3 6 Power 3 | 1 . . . . . 2 Engine 2 | 1 . . . . . 1 Core 1 | . . . . . . 1 Reactor . | . . . . . . . Propulsion 5 | 2 1 . 1 . . 1 Treads . | . . . . . . . Leg . | . . . . . . . Wheel 5 | 2 1 . 1 . . 1 Hover . | . . . . . . . Flight . | . . . . . . . Utility 9 | 1 1 1 3 . 3 . Device 1 | . . . . . 1 . Storage 1 | 1 . . . . . . Processor 1 | . . . 1 . . . Hackware . | . . . . . . . Protection 6 | . 1 1 2 . 2 . Artifact . | . . . . . . . Weapon 9 | 2 1 3 . . . 3 Energy Gun 1 | 1 . . . . . . Energy Cannon . | . . . . . . . Ballistic Gun 7 | 1 1 3 . . . 2 Ballistic Cannon . | . . . . . . . Launcher . | . . . . . . . Special Weapon . | . . . . . . . Impact Weapon . | . . . . . . . Slashing Weapon . | . . . . . . . Piercing Weapon 1 | . . . . . . 1 Special Melee Weapon . | . . . . . . . Unidentified Prototypes 1 | . . . . . 1 . Parts Lost 14 | . . . 1 1 . 12 Power 2 | . . . . . . 2 Propulsion 5 | . . . 1 . . 4 Utility 6 | . . . . 1 . 5 Weapon 1 | . . . . . . 1 Highest Loss Streak 6 | . . . 1 1 . 6 To Critical Strikes . | . . . . . . . Average Backups 7 | 1 4 7 6 7 7 7 Power . | . 1 1 1 1 1 . Propulsion 1 | . 1 2 2 2 1 . Utility 1 | . . 2 1 2 2 1 Weapon 3 | . 1 2 2 2 3 4 Tool/Special . | . . . . . . . Unused Backups 7 | . . 2 . 1 2 2 Power . | . . . . . . . Propulsion 1 | . . . . . 1 . Utility 3 | . . 1 . 1 . 1 Weapon 3 | . . 1 . . 1 1 Tool/Special . | . . . . . . . Average Slot Usage (%) 94 | . 86 100 98 91 98 88 Engine 8 | . 14 14 11 11 11 1 Core 2 | . . . . . . 9 Wheel 21 | . 28 28 22 22 22 18 Device 7 | . . . . . 9 9 Storage 11 | . 14 14 11 11 11 10 Protection 19 | . 1 14 21 22 22 20 Ballistic Gun 20 | . 21 28 20 22 22 16 Peak Build Rating 26 | 6 7 7 10 11 21 26 Average Rating 16 | 4 6 7 9 9 19 21 On Entrance 8 | . 6 7 7 10 10 21 Avg Prop Armor Cover (%) . | . . . . . . . Naked Turns . | . . . . . . . Heaviest Build 24 | 12 15 16 21 21 22 24 Greatest Support 26 | 20 26 26 26 20 20 20 Greatest Overweight (x) 4 | . . . 1 1 1 4 Average Overweight (x) . | . . . . 1 1 1 Largest Inventory Capacity 8 | 8 8 8 8 8 8 8 Average Capacity 7 | 7 8 8 8 8 8 7 Most Carried 8 | 3 8 8 7 8 8 8 Average Carried 7 | 1 4 7 6 7 7 7 Final Capacity 8 | 8 8 8 8 8 8 5 Final Carried 8 | 3 8 8 7 8 8 5 Class Distribution -------------------- 96% | Mutant 3% | Derelict-Mutant Dominant Class ---------------- Mutant | -10/Materials Mutant | -10/Mines Mutant | -9/Materials Mutant | -9/Mines Mutant | -7/Zion Mutant | -6/Proximity Caves Resources | -11 -10 -10 -9 -9 -7 -6 ----------- Run | Yrd Mat Min Mat Min Zio Pro Matter Collected 829 | 217 82 143 123 154 30 80 Remotely . | . . . . . . . Salvage Created 617 | . 94 86 135 . . 302 Parts 43 | . 10 6 10 . . 17 Haulers Intercepted . | . . . . . . . Recyclers Shooed . | . . . . . . . Parts Field Recycled . | . . . . . . . Retrieved Matter . | . . . . . . . Parts Self-Destructed 21 | . . . . . . 21 Prevented 3 | . . . . . . 3 Parts Restored . | . . . . . . . Kills | -11 -10 -10 -9 -9 -7 -6 ------- Run | Yrd Mat Min Mat Min Zio Pro Combat Hostiles Destroyed 19 | . 4 6 3 . . 6 Melee 5 | . . . . . . 5 Guns 14 | . 4 6 3 . . 1 Classes Destroyed 5 | . 2 . 1 . . 2 Worker 1 | . . . 1 . . . Swarmer 11 | . 3 6 . . . 2 Grunt 6 | . 1 . 3 . . 2 Brawler 1 | . . . . . . 1 Sentry 1 | . . . . . . 1 Best Kill Streak 5 | . 3 5 4 . . 2 Combat Bots Only 5 | . 3 5 2 . . 2 Max Kills in Single Turn 1 | . 1 1 1 . . 1 Gunslinging . | . . . . . . . Exploded . | . . . . . . . Melee 1 | . . . . . . 1 Uniques/NPCs Destroyed . | . . . . . . . Combat | -11 -10 -10 -9 -9 -7 -6 -------- Run | Yrd Mat Min Mat Min Zio Pro Hostile Shots Fired 183 | . 11 17 14 . . 141 Missed 51 | . 4 5 5 . . 37 Hits 132 | . 7 12 9 . . 104 Melee 1 | . . . . . . 1 Projectile 131 | . 7 12 9 . . 103 Critical Strikes 1 | . . . . . . 1 Damage Taken 1983 | . 51 95 106 104 . 1627 Core 417 | . . 16 . . . 401 Absorbed by Shields . | . . . . . . . Regen/Repaired (Parts) 67 | . . . 67 . . . Core Remaining (%) 96 | 100 . 93 . . . . Volleys Fired 34 | . 6 12 13 . . 3 Largest 2 | . 2 2 2 . . 2 Hottest 60 | . 60 40 40 . . 43 Shots Fired 67 | . 11 24 26 . . 6 Gun 67 | . 11 24 26 . . 6 Cannon . | . . . . . . . Launcher . | . . . . . . . Special . | . . . . . . . Kinetic 63 | . 7 24 26 . . 6 Thermal 4 | . 4 . . . . . Explosive . | . . . . . . . Electromagnetic . | . . . . . . . Robot Hit Streak 7 | . 5 7 7 . . 6 Robot Miss Streak 7 | . 1 2 7 . . 1 Penetration Max . | . . . . . . . Secondary Targets 1 | . 1 . . . . . Max Gunslinging Chain 1 | . 1 . . . . . Shots Hit Robots 49 | . 8 14 12 . . 15 Core Hits 31 | . 5 7 8 . . 11 Critical Kills . | . . . . . . . Critical Parts Destroyed 2 | . . . 2 . . . Critical Strikes 2 | . . . 2 . . . Destroy 2 | . . . 2 . . . Melee Attacks 24 | . . . . . . 24 Impact . | . . . . . . . Slashing . | . . . . . . . Piercing 24 | . . . . . . 24 Sneak Attacks . | . . . . . . . Combat Hostiles . | . . . . . . . Follow-up Attacks . | . . . . . . . Damage Inflicted 775 | . 84 169 123 . . 399 Guns 439 | . 84 169 123 . . 63 Cannons . | . . . . . . . Explosions . | . . . . . . . Melee 336 | . . . . . . 336 Ramming . | . . . . . . . Kinetic 393 | . 38 169 123 . . 63 Thermal 46 | . 46 . . . . . Explosive . | . . . . . . . Electromagnetic . | . . . . . . . Impact . | . . . . . . . Slashing . | . . . . . . . Piercing 336 | . . . . . . 336 Highest Corruption . | . . . . . . . Average Corruption . | . . . . . . . Corruption Purged . | . . . . . . . Corruption Blocked . | . . . . . . . Overload Shots . | . . . . . . . Overflow Damage . | . . . . . . . Projectiles . | . . . . . . . Explosions . | . . . . . . . Melee . | . . . . . . . Knockbacks . | . . . . . . . Impact . | . . . . . . . Kinetic . | . . . . . . . Secondary . | . . . . . . . Self-Inflicted Damage . | . . . . . . . Shots . | . . . . . . . Rammed . | . . . . . . . Targets Rammed . | . . . . . . . Kicked . | . . . . . . . Crushed . | . . . . . . . Highest Temperature 40 | . 40 12 24 . . 26 Average Temperature 10 | . 27 5 8 . . 14 Received Heat Transfer 396 | . . . 51 . . 345 Siege Activations . | . . . . . . . Martial Activations . | . . . . . . . Shielding Activations . | . . . . . . . Robots Disrupted . | . . . . . . . Combat Hostiles . | . . . . . . . Robots Corrupted . | . . . . . . . Combat Hostiles . | . . . . . . . Parts Fried . | . . . . . . . Impact Corruptions . | . . . . . . . Robots Melted . | . . . . . . . Combat Hostiles . | . . . . . . . Parts Melted . | . . . . . . . Heat Transferred 100 | . 100 . . . . . Parts Sabotaged . | . . . . . . . Parts Stolen . | . . . . . . . Parts Stripped . | . . . . . . . Power Chain Reactions . | . . . . . . . Alert | -11 -10 -10 -9 -9 -7 -6 ------- Run | Yrd Mat Min Mat Min Zio Pro Maximum Alert Level . | . . . . . . . Low Security (%) 100 | 100 100 100 100 100 . . Level 1 . | . . . . . . . Level 2 . | . . . . . . . Level 3 . | . . . . . . . Level 4 . | . . . . . . . Level 5 . | . . . . . . . High Security . | . . . . . . . Max Security . | . . . . . . . Peak Influence 142 | . 142 140 54 1 . . Initial 55 | . . 55 27 1 . . Average 44 | . 47 88 30 . . . Influence Increases 734 | . 182 155 77 . . 320 Destroy 0b10 Robot/C 480 | . 80 120 60 . . 220 Destroy 0b10 Robot/NC 5 | . . . 5 . . . Destroy Leader 70 | . 20 20 . . . 30 Allied During Kill 40 | . . . . . . 40 Successful Hack 19 | . 7 . 12 . . . Partial Spotted 30 | . 30 . . . . . Lose Combat Pursuer 90 | . 45 15 . . . 30 Influence Decreases 720 | . 40 227 143 4 . 306 Entered New Map 133 | . . 87 43 3 . . Time Decay 451 | . 40 140 90 1 . 180 Lost Part 84 | . . . 10 . . 74 Lost Ally 52 | . . . . . . 52 Squads Dispatched 1 | . 1 . . . . . Investigation . | . . . . . . . Extermination . | . . . . . . . Reinforcement 1 | . 1 . . . . . Assault . | . . . . . . . Garrison . | . . . . . . . Intercept . | . . . . . . . Searches Triggered . | . . . . . . . Construction Impeded . | . . . . . . . Haulers Reinforced . | . . . . . . . Active Scanning Responses . | . . . . . . . Cargo Convoy Interrupts . | . . . . . . . Stealth | -11 -10 -10 -9 -9 -7 -6 --------- Run | Yrd Mat Min Mat Min Zio Pro Distress Signals 2 | . 1 . 1 . . . Communications Jammed . | . . . . . . . Distress Signals . | . . . . . . . Times Spotted 40 | . 10 9 5 . . 16 Peak Tracking Total 6 | . 6 3 4 . . 4 Tactical Retreats 4 | . 1 1 . . . 2 Traps | -11 -10 -10 -9 -9 -7 -6 ------- Run | Yrd Mat Min Mat Min Zio Pro Traps Triggered 1 | . . . . 1 . . Indirectly . | . . . . . . . Trap Hack Attempts . | . . . . . . . Triggered . | . . . . . . . Disarmed . | . . . . . . . Reprogrammed . | . . . . . . . Reused . | . . . . . . . Traps Extracted . | . . . . . . . Installed . | . . . . . . . Triggered . | . . . . . . . Machines | -11 -10 -10 -9 -9 -7 -6 ---------- Run | Yrd Mat Min Mat Min Zio Pro Machines Disabled . | . . . . . . . Max in Single Turn . | . . . . . . . Machines Repaired . | . . . . . . . Machines Dismantled . | . . . . . . . Machines Sabotaged . | . . . . . . . Overloaded Fab Kills . | . . . . . . . Hacking | -11 -10 -10 -9 -9 -7 -6 --------- Run | Yrd Mat Min Mat Min Zio Pro Machines Accessed 6 | . 2 1 2 1 . . Terminals 3 | . 2 . 1 . . . Fabricators . | . . . . . . . Repair Stations 1 | . . . 1 . . . Recycling Units . | . . . . . . . Scanalyzers . | . . . . . . . Garrison Access . | . . . . . . . Total Hacks 16 | . 5 1 9 1 . . Successful 9 | . 1 1 6 1 . . Failed 7 | . 4 . 3 . . . Catastrophic 3 | . 3 . . . . . Database Lockouts . | . . . . . . . Manual 10 | . 5 . 4 . 1 . Terminals 10 | . 5 . 5 . . . Fabricators . | . . . . . . . Repair Stations 4 | . . . 4 . . . Recycling Units . | . . . . . . . Scanalyzers . | . . . . . . . Garrison Access . | . . . . . . . Terminal Hacks 6 | . 1 1 3 1 . . Part Schematic 3 | . 1 . 2 . . . Open Door 2 | . . 1 . 1 . . Hauler Manifests 1 | . . . 1 . . . Fabricator Hacks . | . . . . . . . Repair Station Hacks 3 | . . . 3 . . . Scan Component 2 | . . . 2 . . . Repair 1 | . . . 1 . . . Recycling Unit Hacks . | . . . . . . . Scanalyzer . | . . . . . . . Garrison Access Hacks . | . . . . . . . Unauthorized Hacks . | . . . . . . . Terminals . | . . . . . . . Fabricators . | . . . . . . . Repair Stations . | . . . . . . . Recycling Units . | . . . . . . . Scanalyzers . | . . . . . . . Garrison Access . | . . . . . . . Data Cores Recovered . | . . . . . . . Used . | . . . . . . . Hacking Detections 4 | . 2 . 2 . . . Full Trace Events . | . . . . . . . Feedback Events . | . . . . . . . Feedback Blocked . | . . . . . . . Robot Schematics Acquired . | . . . . . . . Robots Built . | . . . . . . . Authchips . | . . . . . . . Time . | . . . . . . . Total Robot Build Rating . | . . . . . . . Part Schematics Acquired 2 | . 1 . 1 . . . Parts Built . | . . . . . . . Authchips . | . . . . . . . Time . | . . . . . . . Total Part Build Rating . | . . . . . . . Part Studies Acquired . | . . . . . . . Parts Repaired 1 | . . . 1 . . . Time 26 | . . . 26 . . . Parts Recycled . | . . . . . . . Recycled Matter . | . . . . . . . Retrieved Matter . | . . . . . . . Retrieved Components . | . . . . . . . Parts Scanalyzed . | . . . . . . . Part Schematics Acquired . | . . . . . . . Parts Damaged . | . . . . . . . Bothacking | -11 -10 -10 -9 -9 -7 -6 ------------ Run | Yrd Mat Min Mat Min Zio Pro Used RIF Installer . | . . . . . . . Robots Hacked . | . . . . . . . Non-combat . | . . . . . . . Combat . | . . . . . . . Robot Hacks Applied . | . . . . . . . Relay Couplers Released . | . . . . . . . Fabnet Peak Effective % . | . . . . . . . Robots Rewired . | . . . . . . . Allies Hacked . | . . . . . . . Hacks Repelled . | . . . . . . . Allies | -11 -10 -10 -9 -9 -7 -6 -------- Run | Yrd Mat Min Mat Min Zio Pro Total Allies 4 | . . . . . 4 . Largest Group 4 | . . . . . 4 4 Highest-Rated Group 157 | . . . . . 157 157 Highest-Rated Ally 41 | . . . . . 41 41 Total Orders . | . . . . . . . Ally Attacks 22 | . . . . . . 22 Total Damage 418 | . . . . . . 418 Kills 5 | . . . . . . 5 Allies Corrupted . | . . . . . . . Allies Melted . | . . . . . . . Intel | -11 -10 -10 -9 -9 -7 -6 ------- Run | Yrd Mat Min Mat Min Zio Pro Active Infowar (turns) . | . . . . . . . Robot Analysis Total . | . . . . . . . Derelict Logs Recovered 3 | . . 1 . . . 2 Drone Launches . | . . . . . . . Drone Recoveries . | . . . . . . . Exploration | -11 -10 -10 -9 -9 -7 -6 ------------- Run | Yrd Mat Min Mat Min Zio Pro Turns Passed 3047 | 46 129 298 186 186 1333 869 Spaces Moved 2485 | 45 131 276 129 194 1079 631 Core 10 | 7 . . . . . 3 Treads . | . . . . . . . Legs . | . . . . . . . Wheels 2475 | 38 131 276 129 194 1079 628 Hover . | . . . . . . . Flight . | . . . . . . . Fastest Speed 50 | 50 80 90 80 95 95 80 Average Speed 93 | 75 80 90 90 95 95 97 Slowest Speed 250 | 80 90 90 95 95 95 250 Overloaded Moves . | . . . . . . . Propulsion Burnouts . | . . . . . . . Robots Hopped . | . . . . . . . Potential Cave-ins . | . . . . . . . Cave-ins Triggered . | . . . . . . . Exploration Rate (%) 47 | 4 37 63 12 52 88 75 Regions Visited 6 Branch Regions 4 Pre-discovered Areas 3 | . . 1 . . 2 . Known Exits Taken . | . . . . . . . Unknown Exits Taken 6 | 1 1 1 1 1 1 . Scrap Searched 5 | . . 1 . 1 1 2 Spaces Dug . | . . . . . . . Terrain Destroyed . | . . . . . . . Melee . | . . . . . . . Projectile . | . . . . . . . AOE . | . . . . . . . Terrain Rammed . | . . . . . . . Walls Destroyed . | . . . . . . . Machines Disabled . | . . . . . . . Actions | -11 -10 -10 -9 -9 -7 -6 --------- Run | Yrd Mat Min Mat Min Zio Pro Total 3091 | 53 143 305 173 196 1388 833 Wait 495 | . . 8 26 . 301 160 Move 2479 | 44 130 275 128 193 1078 631 Hop . | . . . . . . . Pick Up 12 | 3 3 1 . 2 2 1 Fast Attach 13 | 6 2 . 1 . 1 3 Attach 8 | . . . 3 . . 5 Detach 2 | . 1 . . . . 1 Swap 10 | . 1 4 2 . 2 1 Drop 14 | . . 5 . 1 4 4 Fire 34 | . 6 12 13 . . 3 Melee 24 | . . . . . . 24 Ram . | . . . . . . . Kick . | . . . . . . . Crush . | . . . . . . . Escape Stasis . | . . . . . . . Rewire . | . . . . . . . Trap . | . . . . . . . Miscellaneous . | . . . . . . . Route ------- -11/Scrapyard -10/Materials (discovered 2 exits: *Min x2) -10/Mines -9/Materials -9/Mines (discovered 2 exits: [*Mat] / *Zio) -7/Zion -6/Proximity Caves History --------- Turn | Location | Event 4 | -11/Scrapyard | Discovered new exit (range 16) 47 | -11/Scrapyard | Entered Materials 123 | -10/Materials | Discovered new exit (range 12) 171 | -10/Materials | Discovered new exit (range 6) 176 | -10/Materials | Entered Mines 182 | -10/Mines | Found the Drone Emporium 257 | -10/Mines | Learned location of Mines (-9) 286 | -10/Mines | Joined a pair of Derelicts in attacking an 0b10 outpost 324 | -10/Mines | Build established: Mutant 420 | -10/Mines | Discovered new exit (range 5) 474 | -10/Mines | Entered Materials 474 | -9/Materials | Evolved 2 slots: Utility x2 609 | -9/Materials | Repaired Assault Rifle 617 | -9/Materials | Discovered new exit (range 16) 660 | -9/Materials | Entered Mines 681 | -9/Mines | Met a Derelict bent on vengeance 716 | -9/Mines | Met a Derelict who couldn't figure out how to use a Trap Extractor 835 | -9/Mines | A Derelict revealed a hidden shortcut to a safe place 837 | -9/Mines | Discovered new exit (range 15) 846 | -9/Mines | Entered Zion 966 | -7/Zion | Given the Hacking Drone Bay 966 | -7/Zion | Found Prototype Device 966 | -7/Zion | Identified Hacking Drone Bay 1001 | -7/Zion | Found CR-A16's Pointy Stick 1051 | -7/Zion | Learned location of Storage (-7) 1219 | -7/Zion | Learned location of Data Miner (-6) 1360 | -7/Zion | Received a hallucinogenic algorithm 1360 | -7/Zion | Ran a hallucination algorithm 1594 | -7/Zion | Met Imprinter 1612 | -7/Zion | Imprinted 1614 | -7/Zion | Declared Zion's savior 2163 | -7/Zion | Discovered new exit (range 10) 2179 | -7/Zion | Entered Proximity Caves 2179 | -6/Proximity Caves | Accompanied by 4 allies 2277 | -6/Proximity Caves | Learned Factory garrison access intel 2594 | -6/Proximity Caves | Attracted the attention of an 0b10 checkpoint 2622 | -6/Proximity Caves | Lost 4 allies 2662 | -6/Proximity Caves | Spotted B-75 Beast 2855 | -6/Proximity Caves | Learned Factory terminal intel 2984 | -6/Proximity Caves | Lost 6 parts (1p2n3u) 3023 | -6/Proximity Caves | Core integrity fell below 50% 3042 | -6/Proximity Caves | Core integrity fell below 20% 3048 | -6/Proximity Caves | Destroyed by S-27 Virus with Autogun Last Messages --------------- 02945_ Hvy. Laser fries itself beyond repair. 02951_ Adv. Heat Sink fries itself beyond repair. 02953_ Hacking Drone Bay destroyed. 02954_ Carbon-fiber Leg fries itself beyond repair. 02967_ G-50 Soldier destroyed. 02971_ Carbon-fiber Leg fries itself beyond repair. 02976_ Acquired 10 matter. 03026_ Wheel destroyed. 03026_ S-27 Virus destroyed. 03030_ Hrd. Light Armor Plating destroyed. 03035_ S-27 Virus destroyed. 03036_ VTOL Module fries itself beyond repair. 03037_ Ion Engine destroyed. 03038_ Lgt. Nuclear Core fries itself beyond repair. 03039_ Sml. Storage Unit destroyed. 03042_ Autogun fries itself beyond repair. Map ----- +----------------------------------------------------+ | ????????????????????????????????????????????? | | ????????????????????????????????????????????? | | ????????????????????????????????????????????? | | ????????????????????????????????????????????? | | ????????????????????????????????????????????? | | ????????????????????????????????????????????? | | ????????????????????????????????????????????? | | ????????????????????????????????????????????? | | ????????????????????????????????????????????? | | ?????###????????????????????????????????????? | | ?##### #?????##?????????????????????????????? | | ## #????# ###? ?????????????????????????? | | # ###?# ?????????????????????????? | | # ## ?%## ?????????????????????? | | #?#### ?????????????????????? | | #????# ????????????????????? | | ##????# #????????????????????? | | ## #?????? #?????????????????????? | | ?## #?????# #??????????????????????? | | ??## ###### ##?????????????????????? | | ???## ## #?????????????????????? | | #???## #?# #?????????????????????? | | #???### ##?# #?????????????????????? | | ####?# ##### #####?????????????????? | | ### ## s ##????????????????? | | #@ #????????????????? | | ###### s= #????????????????? | | # ### ######????##### ##????????????????? | | #######?###?????????????###?????????????????? | | ????????????????????????????????????????????? | | ????????????????????????????????????????????? | | ????????????????????????????????????????????? | | ????????????????????????????????????????????? | | ????????????????????????????????????????????? | | ????????????????????????????????????????????? | | ????????????????????????????????????????????? | | ????????????????????????????????????????????? | | ????????????????????????????????????????????? | | ????????????????????????????????????????????? | | ????????????????????????????????????????????? | | ????????????????????????????????????????????? | | ????????????????????????????????????????????? | | ????????????????????????????????????????????? | | ????????????????????????????????????????????? | | | | | | | | | | | | | +----------------------------------------------------+ Best States ------------- Heat Dissipation 28 Energy Generation 14 Energy Capacity 250 Matter Stores 300 Matter Capacity 300 Sight Range 16 Terrain Scan Density 10 Armor Coverage 300 Evasion (%) 44 Targeting Accuracy 5 Item Schematics ----------------- Med. Storage Unit | -10/Materials | Hacked Hover Unit | -9/Materials | Hacked Robot Schematics ------------------ None Fabricated ------------ Nothing Repaired ---------- Assault Rifle | 33% | -9/Materials Studied --------- None Alien Tech Used ----------------- None Achievements -------------- None Challenges ------------ None Game ------ Seed TitaniumPointyBoomstick Manual? 0 Play Time 00:29:52 Cumulative 31.5 hours Start 2025.11.25 @ 20:12:27 End 2025.11.25 @ 20:44:44 Sessions 1 Manual Loads 0 Difficulty Rogue Special Mode None Game No. 33 Rogue 33 Adventurer 0 Explorer 0 Win Type - Total 0 Types 0/0/0/0/0/0/0/0/0/0 Lore% 16 Gallery% 23 Achievement% 20 Wizard Run 0 Options --------- Layout 1 ASCII 0 Keyboard 1 Movement Numpad Keybinds 0 Fullscreen 1 Font 24/Smallcaps Map View 50x35 Zoom Use 0% Tactical HUD 1 Map Filters NONE Filters NONE Steam 1 RUN: 31147d0b-eec6-44cc-b38b-46b5af6cf0c2